OrganisationLabel,OrganisationalUnit,BeneficiaryName,PaymentDate,Amount,IrrecoverableVATAmount,Purpose,CategoryInternalName
Rother District Council,1271271,REDACTED - PERSONAL DATA',21/01/2015,"1,900.00",0,Service fee paid to Third Parties,Policy and Performance Unit
Rother District Council,1271357,REDACTED - PERSONAL DATA',27/01/2015,826,0,Housing Landlord Scheme - Rent payment,Housing
Rother District Council,1271258,REDACTED - PERSONAL DATA',12/01/2015,"2,454.00",0,Standards Investigator (Demo. Srvs),Corporate Resources
Rother District Council,1271098,REDACTED - PERSONAL DATA',13/01/2015,720,0,Homelessness Prevention Projects,Housing
Rother District Council,1271097,REDACTED - PERSONAL DATA',13/01/2015,"1,100.00",0,Homelessness Prevention Projects,Housing
Rother District Council,1271360,Mr Mark Neale General Building and Plumbing Ltd,27/01/2015,"3,530.00",0,Disabled Facilities Grant,Housing
Rother District Council,1271358,REDACTED - PERSONAL DATA',27/01/2015,"1,100.00",0,Homelessness Prevention Projects,Housing
Rother District Council,1271355,REDACTED - PERSONAL DATA',27/01/2015,518,0,Housing Landlord Scheme - Rent payment,Housing
Rother District Council,1271275,1066 Removals Services,06/01/2015,570,0,BandB Removals,Housing
Rother District Council,1271095,A and A J Bishop,13/01/2015,"4,562.00",0,Disabled Facilities Grant,Housing
Rother District Council,1271099,A and A J Bishop,13/01/2015,985,0,Disabled Facilities Grant,Housing
Rother District Council,1271233,A and A J Bishop,20/01/2015,"3,500.00",0,Disabled Facilities Grant,Housing
Rother District Council,1271359,A and A J Bishop,27/01/2015,"5,700.00",0,Disabled Facilities Grant,Housing
Rother District Council,1270993,ADT Fire and  Security Plc,01/01/2015,"1,011.18",0,Fire Alarm System Maintenance,Amenities
Rother District Council,1271339,B and G Environmental Services Limited,19/01/2015,900,0,Drainage Clearance,Amenities
Rother District Council,1271326,Bexhill Electrical Ltd,15/01/2015,"3,059.40",0,Bex Xmas Lights Installation + Mtce,Regeneration
Rother District Council,1271120,Bexhill Town Forum,14/01/2015,"2,500.00",0,Bexhill Town Forum,Finance
Rother District Council,1271205,Bond Solon Training Ltd,08/01/2015,606,0,EnvH- Training,EH Environmental Services Admin R + W Partnership
Rother District Council,1271383,Capita Business Services Ltd,12/01/2015,"1,156.85",0,Bank Charges,Finance
Rother District Council,1271091,Davey Lettings,13/01/2015,500,0,Homelessness Prevention Projects,Housing
Rother District Council,1271107,Dolphin Lifts Kent,13/01/2015,"2,217.87",0,Disabled Facilities Grant,Housing
Rother District Council,1271096,Family Mosaic Housing,13/01/2015,684.3,0,Disabled Facilities Grant,Housing
Rother District Council,1271100,Family Mosaic Housing,13/01/2015,968.24,0,Disabled Facilities Grant,Housing
Rother District Council,1271232,Family Mosaic Housing,20/01/2015,"1,020.00",0,Disabled Facilities Grant,Housing
Rother District Council,1271234,GMS Adaptations,20/01/2015,"2,975.00",0,Disabled Facilities Grant,Housing
Rother District Council,1271108,Griffin and Son,13/01/2015,"3,500.00",0,Disabled Facilities Grant,Housing
Rother District Council,1271356,REDACTED - PERSONAL DATA',27/01/2015,"1,030.00",0,Homelessness Prevention Projects,Housing
Rother District Council,1271246,Kier Services - Environmental,12/01/2015,"1,164,652.52",0,CORE Joint Waste Cost,Joint Waste Contract Client Unit
Rother District Council,1271199,Let's Do Business Group,08/01/2015,"7,828.80",0,Locate East Sussex,Regeneration
Rother District Council,1271180,Motavation Publishing and Graphics Ltd,09/01/2015,"2,968.80",0,Envelopes,Finance
Rother District Council,1271384,National Westminster Bank PLC,29/01/2015,"3,072.08",0,Bank Charges,Finance
Rother District Council,1271378,NatWest - One Card,15/01/2015,213.97,0,Training,Policy and Performance Unit
Rother District Council,1271378,NatWest - One Card,15/01/2015,661,0,Vehicle Hire,EH Pest Control R + W Partnership
Rother District Council,1271336,Ocella Ltd,15/01/2015,"1,140.00",0,Ocella - Report Dev/Implement/Train,Building Control Partnership
Rother District Council,1271337,Ocella Ltd,15/01/2015,"6,300.00",0,Ocella - Report Dev/Implement/Train,Building Control Partnership
Rother District Council,1271089,One Two One Design Group,02/01/2015,500,0,Arts Development Projects,Amenities
Rother District Council,1271130,Pitney Bowes Purchase Power,06/01/2015,"5,050.00",0,Town Hall Franking Machine,Finance
Rother District Council,1271105,Rother Voluntary Action,12/01/2015,"10,000.00",0,SLA Delivery,Finance
Rother District Council,1271129,Sign Genie Ltd,07/01/2015,"4,705.80",0,Purchase of Signs,EH Engineers (WEALDEN ONLY) + W Partnership
Rother District Council,1271188,Southern Water,12/01/2015,"5,616.79",0,Water Charges,Amenities
Rother District Council,1271188,Southern Water,12/01/2015,"9,921.95",0,Sewage Charges,Amenities
Rother District Council,1271092,St Mungo's Broadway,13/01/2015,800,0,Homelessness Prevention Projects,Housing
Rother District Council,1271198,TCC Ltd,07/01/2015,"19,400.00",0,Parks- Landscaping Works,Amenities
Rother District Council,1271066,Vodafone Limited,01/01/2015,"4,963.80",0,Leased Line Rental,Technology
Rother District Council,1271150,Wybone Ltd,06/01/2015,"4,383.14",0,Supply of Litter Bins,Amenities
Rother District Council,1271327,Yellowday Training Ltd,26/01/2015,"1,194.00",0,Training,Customer Help Points
Rother District Council,1271029,Colin A May,07/01/2015,"2,160.00",0,Parks- Redecoration Works,Amenities
Rother District Council,1271201,Robinson and  Baker Heating Ltd Account Payee,13/01/2015,"1,338.90",0,Heating Maintenance,Amenities
Rother District Council,1271334,East Sussex County Council,07/01/2015,830,0,Fee Payments to ESCC,Planning
Rother District Council,1271190,Laser Energy Buying Group (Kent County Council Commercial Services),13/01/2015,969.36,0,Gas Charges,Amenities
Rother District Council,1271173,Wealden District Council,06/01/2015,"7,380.00",0,provision of internal auditor services,Corporate Resources
Rother District Council,1271186,Wealden District Council,07/01/2015,772.2,0,Consultants Fees,Finance
Rother District Council,1271248,Wealden District Council,16/01/2015,"69,288.90",0,shared service legal management fee,Corporate Resources
